Cogmind - Beta 11 X8 @@@ ROGUE MODE // 2021.11.09 @ 08:15:38 Player: Giant Eel Result: Destroyed by H-55 Commando with Gauss Rifle Performance ------------- Evolutions (3) 1500 Regions Visited (5) 1000 Robots Destroyed (43) 215 Value Destroyed (1353) 1353 Prototype IDs (5) 100 Alien Tech Used (0) 0 Bonus (0) 0 TOTAL SCORE: 4168 Bonus ------- None Cogmind --------- Core Integrity 0/700 Matter 190/300 Energy 0/100 System Corruption 1% Temperature Cool (0) Movement Core (200) Ox3 Location -7/Factory Parts ------- > --- POWER (1) -------- (None) > --- PROPULSION (4) --- (None) > --- UTILITY (6) ------ Medium Storage Unit ECM Suite Hacking Suite > --- WEAPON (2) ------- (None) > --- INVENTORY (10) --- Light Nuclear Core Xenon Bombardment Thruster Improved Sensor Array Mini Grenade Launcher Remote Datajack Blade Saw Peak State ------------ > --- POWER ------------ Light Nuclear Core > --- PROPULSION ------- Xenon Bombardment Thruster Xenon Bombardment Thruster Xenon Bombardment Thruster Xenon Bombardment Thruster > --- UTILITY ---------- Improved Heat Sink Improved Heat Sink Large Storage Unit ECM Suite Insulated Plating Insulated Plating > --- WEAPON ----------- Heavy Particle Gun Heavy Particle Gun > --- INVENTORY -------- Ion Engine Light Ion Engine Light Nuclear Core Armored Treads Armored Treads Hover Unit Hover Unit Improved Heat Sink Hacking Suite Heavy Particle Gun Heavy Particle Gun Minigun Minigun Mini Grenade Launcher Blade Saw [Rating: 44] Favorites ----------- Power Ion Engine Engine Ion Engine Power Core Light Nuclear Core Propulsion Aluminum Leg Treads Armored Treads Leg Aluminum Leg Hover Unit Hover Unit Flight Unit Xenon Bombardment Thruster Utility Improved Heat Sink Device Improved Heat Sink Storage Large Storage Unit Hackware Hacking Suite Protection Medium Armor Plating Weapon Improved Medium Laser Energy Gun Improved Medium Laser Ballistic Gun Minigun Special Weapon Remote Datajack Impact Weapon Flail Slashing Weapon Blade Saw Build | -11 -10 -10 -9 -8 -7 ------- Run | Scr Mat Min Mat Mat Fac Slots Evolved 6 | . . . 2 2 2 Power . | . . . . . . Propulsion 2 | . . . 1 1 . Utility 4 | . . . 1 1 2 Weapon . | . . . . . . Parts Attached 77 | . 5 . 27 32 13 Power 6 | . . . 3 2 1 Engine 5 | . . . 3 1 1 Core 1 | . . . . 1 . Reactor . | . . . . . . Propulsion 23 | . 1 . 8 10 4 Treads 4 | . . . . 4 . Leg 3 | . 1 . 2 . . Wheel . | . . . . . . Hover 12 | . . . 6 6 . Flight 4 | . . . . . 4 Utility 21 | . 2 . 3 11 5 Device 9 | . . . . 7 2 Storage 2 | . 1 . . . 1 Processor . | . . . . . . Hackware 1 | . . . . . 1 Protection 9 | . 1 . 3 4 1 Artifact . | . . . . . . Weapon 27 | . 2 . 13 9 3 Energy Gun 15 | . 2 . 6 7 . Energy Cannon . | . . . . . . Ballistic Gun 3 | . . . 3 . . Ballistic Cannon . | . . . . . . Launcher . | . . . . . . Special Weapon 1 | . . . . . 1 Impact Weapon 6 | . . . 4 1 1 Slashing Weapon 2 | . . . . 1 1 Piercing Weapon . | . . . . . . Special Melee Weapon . | . . . . . . Unidentified Prototypes 3 | . 1 . 1 1 . Parts Lost 26 | . . 1 5 10 10 Power 4 | . . . 1 1 2 Propulsion 10 | . . . 1 5 4 Utility 9 | . . 1 2 3 3 Weapon 3 | . . . 1 1 1 Highest Loss Streak 10 | . . 1 3 4 10 Average Slot Usage (%) 94 | . 88 100 95 97 89 Engine 7 | . 14 14 10 4 . Core 2 | . . . . 4 6 Treads 5 | . . . . 16 . Leg 11 | . 28 28 21 . . Hover 9 | . . . 10 18 . Flight 5 | . . . . . 27 Device 10 | . . . . 15 28 Storage 9 | . 14 14 11 9 6 Hackware 1 | . . . . . 6 Protection 11 | . 3 14 19 10 1 Energy Gun 14 | . 28 28 16 15 3 Ballistic Gun 1 | . . . 3 2 . Slashing Weapon 1 | . . . . . 4 Naked Turns . | . . . . . . Heaviest Build 45 | 14 38 38 45 41 41 Greatest Support 82 | 20 20 20 30 82 82 Greatest Overweight (x) 14 | . 1 1 14 1 6 Average Overweight (x) . | . . 1 1 . . Largest Inventory Capacity 15 | . 15 15 15 15 15 Average Capacity 13 | . 8 15 15 15 9 Most Carried 15 | . 8 8 15 15 15 Average Carried 9 | . 6 8 9 14 4 Final Capacity 15 | 8 15 15 15 15 10 Final Carried 15 | 6 8 8 13 15 6 Class Distribution -------------------- 70% | Mutant 20% | Scavenger-Sprinter 8% | Scavenger-Mutant Dominant Class ---------------- Mutant | -10/Materials Mutant | -10/Mines Mutant | -9/Materials Mutant | -8/Materials Scavenger-Sprinter | -7/Factory Resources | -11 -10 -10 -9 -8 -7 ----------- Run | Scr Mat Min Mat Mat Fac Matter Collected 999 | 200 . 15 410 374 . Remotely . | . . . . . . Salvage Created 1683 | . 46 44 739 854 . Parts 88 | . 4 4 40 40 . Haulers Intercepted 1 | . . . 1 . . Recyclers Shooed . | . . . . . . Parts Field Recycled . | . . . . . . Retrieved Matter . | . . . . . . Parts Self-Destructed . | . . . . . . Prevented . | . . . . . . Kills | -11 -10 -10 -9 -8 -7 ------- Run | Scr Mat Min Mat Mat Fac Combat Hostiles Destroyed 37 | . 1 3 18 15 . Guns 35 | . 1 3 16 15 . Classes Destroyed 8 | . 1 1 4 2 . Worker 1 | . . . . 1 . Hauler 1 | . . . 1 . . Recycler 1 | . . . 1 . . Watcher 3 | . . . 2 1 . Swarmer 11 | . . 3 8 . . Grunt 16 | . 1 . 6 9 . Sentry 8 | . . . 4 4 . Hunter 2 | . . . . 2 . Best Kill Streak 4 | . 1 3 4 4 . Combat Bots Only 4 | . 1 3 4 3 . Max Kills in Single Turn 2 | . 1 2 1 1 . Gunslinging 1 | . . 1 . . . Exploded . | . . . . . . Melee . | . . . . . . Uniques/NPCs Destroyed . | . . . . . . Combat | -11 -10 -10 -9 -8 -7 -------- Run | Scr Mat Min Mat Mat Fac Damage Taken 3696 | . 46 364 892 1187 1207 Core 921 | . . 34 83 103 701 Absorbed by Shields . | . . . . . . Core Remaining (%) 86 | 100 . 86 79 81 . Volleys Fired 132 | . 5 4 58 65 . Largest 2 | . 2 2 2 2 . Hottest 112 | . 80 112 112 112 . Shots Fired 254 | . 10 8 111 125 . Gun 254 | . 10 8 111 125 . Cannon . | . . . . . . Launcher . | . . . . . . Special . | . . . . . . Kinetic 26 | . . . 12 14 . Thermal 218 | . . 8 99 111 . Explosive . | . . . . . . Electromagnetic 10 | . 10 . . . . Robot Hit Streak 18 | . 3 2 6 18 . Robot Miss Streak 5 | . 3 2 5 3 . Penetration Max . | . . . . . . Secondary Targets 5 | . . 1 2 2 . Max Gunslinging Chain 1 | . . 1 1 1 . Shots Hit Robots 149 | . 5 4 52 85 3 Core Hits 63 | . 3 3 24 32 1 Critical Kills . | . . . . . . Critical Parts Destroyed . | . . . . . . Critical Strikes 16 | . . . 8 6 2 Burn 14 | . . . 8 6 . Sever 2 | . . . . . 2 Melee Attacks 37 | . . . 20 8 9 Impact 24 | . . . 20 3 1 Slashing 13 | . . . . 5 8 Piercing . | . . . . . . Sneak Attacks . | . . . . . . Combat Hostiles . | . . . . . . Follow-up Attacks . | . . . . . . Damage Inflicted 2757 | . 84 85 972 1558 58 Guns 2699 | . 84 85 972 1558 . Cannons . | . . . . . . Explosions . | . . . . . . Melee 58 | . . . . . 58 Ramming . | . . . . . . Kinetic 319 | . . . 122 197 . Thermal 2296 | . . 85 850 1361 . Explosive . | . . . . . . Electromagnetic 84 | . 84 . . . . Impact . | . . . . . . Slashing 58 | . . . . . 58 Piercing . | . . . . . . Highest Corruption 1 | . . . . . 1 Average Corruption 1 | . . . . . 1 Corruption Purged . | . . . . . . Effects 1 | . . . . . 1 Message Errors 1 | . . . . . 1 Overload Shots . | . . . . . . Overflow Damage . | . . . . . . Projectiles . | . . . . . . Explosions . | . . . . . . Melee . | . . . . . . Knockbacks . | . . . . . . Impact . | . . . . . . Kinetic . | . . . . . . Secondary . | . . . . . . Self-Inflicted Damage . | . . . . . . Shots . | . . . . . . Rammed . | . . . . . . Targets Rammed . | . . . . . . Kicked . | . . . . . . Crushed . | . . . . . . Highest Temperature 555 | . 54 240 555 454 . Average Temperature 180 | . 22 112 204 161 . Received Heat Transfer 912 | . 27 60 219 594 12 Effects 34 | . . . 27 7 . Shutdowns 6 | . . . 4 2 . Energy Bleed 2 | . . . 1 1 . Interference 8 | . . . 5 3 . Matter Decay 4 | . . . 3 1 . Short Circuit 2 | . . . 2 . . Damage (minor) 2 | . . . 2 . . Damage (major) 10 | . . . 10 . . Siege Activations . | . . . . . . Robots Corrupted . | . . . . . . Combat Hostiles . | . . . . . . Parts Fried . | . . . . . . Impact Corruptions . | . . . . . . Robots Melted 3 | . . . 2 1 . Combat Hostiles 2 | . . . 2 . . Parts Melted 18 | . . 1 9 8 . Heat Transferred 5809 | . . 185 2442 3182 . Parts Sabotaged . | . . . . . . Parts Stolen . | . . . . . . Parts Stripped . | . . . . . . Power Chain Reactions . | . . . . . . Missiles Intercepted . | . . . . . . Alert | -11 -10 -10 -9 -8 -7 ------- Run | Scr Mat Min Mat Mat Fac Peak Influence 250 | . 82 101 250 206 215 Initial 105 | . . 31 35 105 31 Average 99 | . 33 91 121 127 62 Maximum Alert Level 1 | . . . 1 1 1 Low Security (%) 92 | . 100 100 89 98 86 Level 1 7 | . . . 10 1 13 Level 2 . | . . . . . . Level 3 . | . . . . . . Level 4 . | . . . . . . Level 5 . | . . . . . . High Security . | . . . . . . Max Security . | . . . . . . Squads Dispatched 7 | . . . 3 2 2 Investigation 3 | . . . 1 1 1 Extermination . | . . . . . . Reinforcement 4 | . . . 2 1 1 Assault . | . . . . . . Garrison . | . . . . . . Intercept . | . . . . . . Construction Impeded . | . . . . . . Haulers Reinforced . | . . . . . . Active Scanning Responses . | . . . . . . Cargo Convoy Interrupts . | . . . . . . Stealth | -11 -10 -10 -9 -8 -7 --------- Run | Scr Mat Min Mat Mat Fac Distress Signals 3 | . . . 1 2 . Communications Jammed . | . . . . . . Distress Signals . | . . . . . . Times Spotted 86 | . 5 15 27 26 13 Peak Tracking Total 7 | . 3 7 5 6 6 Tactical Retreats 9 | . 1 . 3 3 2 Traps | -11 -10 -10 -9 -8 -7 ------- Run | Scr Mat Min Mat Mat Fac Traps Triggered 2 | . . . . 1 1 Indirectly . | . . . . . . Trap Hack Attempts . | . . . . . . Triggered . | . . . . . . Disarmed . | . . . . . . Reprogrammed . | . . . . . . Reused . | . . . . . . Traps Extracted . | . . . . . . Installed . | . . . . . . Triggered . | . . . . . . Machines | -11 -10 -10 -9 -8 -7 ---------- Run | Scr Mat Min Mat Mat Fac Machines Disabled 3 | . . . 2 1 . Max in Single Turn 1 | . . . 1 1 . Machines Sabotaged . | . . . . . . Garrisons Compromised . | . . . . . . Overloaded Fab Kills . | . . . . . . Hacking | -11 -10 -10 -9 -8 -7 --------- Run | Scr Mat Min Mat Mat Fac Machines Accessed 14 | . 3 . 3 4 4 Terminals 9 | . 2 . 2 3 2 Fabricators 1 | . . . . . 1 Repair Stations 1 | . . . 1 . . Recycling Units 1 | . 1 . . . . Scanalyzers 2 | . . . . 1 1 Garrison Access . | . . . . . . Total Hacks 34 | . 7 . 7 10 10 Successful 24 | . 5 . 6 8 5 Failed 10 | . 2 . 1 2 5 Catastrophic . | . . . . . . Database Lockouts . | . . . . . . Manual 13 | . 1 . 3 5 4 Terminals 22 | . 5 . 4 8 5 Fabricators 2 | . . . . . 2 Repair Stations 3 | . . . 3 . . Recycling Units 2 | . 2 . . . . Scanalyzers 5 | . . . . 2 3 Garrison Access . | . . . . . . Terminal Hacks 8 | . 3 . 1 4 . Prototype ID Bank 1 | . 1 . . . . Branch Access Points 1 | . . . . 1 . Emergency Access Points 1 | . 1 . . . . Unreport Threat 2 | . . . . 2 . Registered Components 1 | . . . . 1 . Zone Layout 2 | . 1 . 1 . . Fabricator Hacks . | . . . . . . Repair Station Hacks 3 | . . . 3 . . Scan Component 2 | . . . 2 . . Repair 1 | . . . 1 . . Recycling Unit Hacks 1 | . 1 . . . . Report Inventory 1 | . 1 . . . . Scanalyzer 5 | . . . . 2 3 Insert Component 2 | . . . . 1 1 Analyze 3 | . . . . 1 2 Garrison Access Hacks . | . . . . . . Unauthorized Hacks 7 | . 1 . 2 2 2 Terminals 7 | . 1 . 2 2 2 Botnet 7 | . 1 . 2 2 2 Fabricators . | . . . . . . Repair Stations . | . . . . . . Recycling Units . | . . . . . . Scanalyzers . | . . . . . . Garrison Access . | . . . . . . Data Cores Recovered . | . . . . . . Used . | . . . . . . Hacking Detections 11 | . 2 . 2 3 4 Full Trace Events 2 | . . . 1 . 1 Feedback Events . | . . . . . . Feedback Blocked . | . . . . . . Robot Schematics Acquired . | . . . . . . Robots Built . | . . . . . . Authchips . | . . . . . . Time . | . . . . . . Total Robot Build Rating . | . . . . . . Part Schematics Acquired 2 | . . . . 1 1 Parts Built . | . . . . . . Authchips . | . . . . . . Time . | . . . . . . Total Part Build Rating . | . . . . . . Parts Repaired 1 | . . . 1 . . Time 51 | . . . 51 . . Parts Recycled . | . . . . . . Recycled Matter . | . . . . . . Retrieved Matter . | . . . . . . Retrieved Components . | . . . . . . Parts Scanalyzed 2 | . . . . 1 1 Part Schematics Acquired 2 | . . . . 1 1 Parts Damaged . | . . . . . . Bothacking | -11 -10 -10 -9 -8 -7 ------------ Run | Scr Mat Min Mat Mat Fac Used RIF Installer . | . . . . . . Robots Hacked . | . . . . . . Non-combat . | . . . . . . Combat . | . . . . . . Robot Hacks Applied . | . . . . . . Relay Couplers Released . | . . . . . . Robots Rewired . | . . . . . . Allies Hacked . | . . . . . . Hacks Repelled . | . . . . . . Allies | -11 -10 -10 -9 -8 -7 -------- Run | Scr Mat Min Mat Mat Fac Total Allies . | . . . . . . Largest Group . | . . . . . . Highest-Rated Group . | . . . . . . Highest-Rated Ally . | . . . . . . Total Orders . | . . . . . . Ally Attacks . | . . . . . . Total Damage . | . . . . . . Kills . | . . . . . . Allies Corrupted . | . . . . . . Allies Melted . | . . . . . . Intel | -11 -10 -10 -9 -8 -7 ------- Run | Scr Mat Min Mat Mat Fac Robot Analysis Total . | . . . . . . Derelict Logs Recovered . | . . . . . . Drone Launches . | . . . . . . Drone Recoveries . | . . . . . . Exploration | -11 -10 -10 -9 -8 -7 ------------- Run | Scr Mat Min Mat Mat Fac Turns Passed 2823 | . 323 43 1015 831 611 Spaces Moved 1563 | 1 211 17 423 423 488 Core 2 | . . . 2 . . Treads 190 | . . . . 180 10 Legs 462 | 1 211 17 233 . . Wheels . | . . . . . . Hover 431 | . . . 188 243 . Flight 478 | . . . . . 478 Fastest Speed 31 | 120 120 190 102 105 31 Average Speed 109 | 120 131 190 155 130 37 Slowest Speed 750 | 120 190 190 750 163 520 Overloaded Moves . | . . . . . . Propulsion Burnouts . | . . . . . . Robots Hopped 1 | . . . . . 1 Cave-ins Triggered . | . . . . . . Exploration Rate (%) 25 | 2 42 10 44 41 15 Regions Visited 5 Branch Regions 1 Pre-discovered Areas . | . . . . . . Known Exits Taken . | . . . . . . Unknown Exits Taken 5 | 1 1 1 1 1 . Scrap Searched . | . . . . . . Spaces Dug 18 | . . . 15 3 . Terrain Destroyed 18 | . . . 15 3 . Melee 18 | . . . 15 3 . Projectile . | . . . . . . AOE . | . . . . . . Terrain Rammed . | . . . . . . Walls Destroyed . | . . . . . . Machines Disabled . | . . . . . . Actions | -11 -10 -10 -9 -8 -7 --------- Run | Scr Mat Min Mat Mat Fac Total 2378 | . 252 20 639 560 907 Wait 468 | . 14 . 78 9 367 Move 1556 | . 210 16 422 422 486 Hop 1 | . . . . . 1 Pick Up 42 | . 7 . 17 13 5 Fast Attach 21 | . 3 . 5 7 6 Attach 24 | . . . 8 9 7 Detach 14 | . 1 . 5 . 8 Swap 32 | . 2 . 14 16 . Drop 50 | . 9 . 12 11 18 Fire 132 | . 5 4 58 65 . Melee 37 | . . . 20 8 9 Ram . | . . . . . . Kick . | . . . . . . Crush . | . . . . . . Escape Stasis . | . . . . . . Rewire 1 | . 1 . . . . Trap . | . . . . . . Miscellaneous . | . . . . . . Route ------- -11/Scrapyard -10/Materials (discovered 2 exits: *Mat / [*Min]) -10/Mines -9/Materials -8/Materials -7/Factory History --------- Turn | Location | Event 1 | -11/Scrapyard | Discovered new exit (range 0) 1 | -11/Scrapyard | Entered Materials 113 | -10/Materials | Discovered new exit (range 15) 233 | -10/Materials | Discovered new exit (range 15) 323 | -10/Materials | Build established: Mutant 324 | -10/Materials | Entered Mines 325 | -10/Mines | Assembled infested the area 354 | -10/Mines | Discovered new exit (range 8) 367 | -10/Mines | Entered Materials 367 | -9/Materials | Evolved 2 slots: Propulsion x1, Utility x1 598 | -9/Materials | Repaired Imp. Medium Laser 1215 | -9/Materials | Lost 3 parts (1p1u1w) 1285 | -9/Materials | Discovered new exit (range 18) 1382 | -9/Materials | Entered another Materials area 1382 | -8/Materials | Evolved 2 slots: Propulsion x1, Utility x1 1846 | -8/Materials | Lost 4 parts (1p1n2u) 2155 | -8/Materials | Discovered new exit (range 16) 2213 | -8/Materials | Entered Factory 2213 | -7/Factory | Evolved 2 slots: Utility x2 2512 | -7/Factory | Build established: Scavenger-Sprinter 2815 | -7/Factory | Core integrity fell below 50% 2821 | -7/Factory | Core integrity fell below 20% 2824 | -7/Factory | Destroyed by H-55 Commando with Gauss Rifle Last Messages --------------- F019. 02772_ Acquired Imp. Sensor Array. 02773_ Penetrated by Slug. 02773_ Lgt. Nuclear Core destroyed. 02775_ ALERT: Cargo convoy en route, clear transfer corridor. 02789_ Acquired Hvy. Flail. 02790_ Imp. Heat Sink destroyed. 02793_ Lgt. Deuterium Engine destroyed. 02794_ Xenon Bombardment Thruster destroyed. 02799_ Penetrated by Slug. 02802_ Imp. Heat Sink destroyed. 02804_ Xenon Bombardment Thruster destroyed. 02804_ Imp. Heat Sink destroyed. 02805_ Penetrated by Slug. 02806_ Xenon Bombardment Thruster destroyed. 02811_ Penetrated by Slug. 02811_ Xenon Bombardment Thruster destroyed. 02813_ Hvy. Flail destroyed. 02818_ Slug penetrates Wall. 02824_ Penetrated by Slug. Map ----- +----------------------------------------------------+ | ?????????????????????????????????????? | | ?????????????????????????????????????? | | ?????????????????????????????????????? | | ?????????????????????????????????????? | | ?????????????????????????????????????? | | ?????????????????????????????????????? | | ?????????????????????????????????????? | | ?????????????????????????????????????? | | ?????????????????????????????????????? | | ?????????????????????????????????????? | | ?????????????????????????????????????? | | ?????????????????????????????????????? | | ?????????????????????????????????????? | | ?????????????????????????????????????? | | ?????????????????????????????????????? | | ?????????????????????????????????????? | | ?????????????????????????????????????? | | ?????????????????????#######+#####???? | | ?????????????????????# #???? | | ?????????????????????# / #???? | | ?????????????? # ! #???? | | ??????????????? = # #???? | | ????###????????# # ss #???? | | ???? !????????# # ! ss #???? | | ???? ????????# + #???? | | ???? ????????# ####@######/##### | | ????! ????????# #### #?# # | | ???? ????????# #?# """ # | | ???? ????????# ### """ # | | ???? ????????# # """ # | | ???? ????????#!!! + # | | ???? ????????#!!! """ # """ # | | ????#/#????????#!!! """h ## """ # | | ????# #????????# """ ## """ ! # | | ????# #????????# ## # | | ????# #??####### ] ########### | | ????# #### ]! #?????????? | | ##### ]! #?????????? | | #?????????? | | ##### #?????????? | | ????###### ### ##?????????? | | ?????????# ########?# #??????????? | | ?????????# #????????# #??????????? | | ???????? #????????# #??????????? | | ??????? +????????? #??????????? | | ?????? #????????? ??????????? | | ?????? #????????? ??????????? | | ????? #????????? ??????????? | | ?????###########?????????????????????? | | ?????????????????????????????????????? | +----------------------------------------------------+ Best States ------------- Heat Dissipation 76 Energy Generation 14 Energy Capacity 250 Matter Stores 300 Matter Capacity 300 Sight Range 16 Terrain Scan Density 10 ECM Strength 1 Armor Coverage 450 Resistance: EM 15 Evasion (%) 63 Recoil Reduction 4 Offensive Hacking 10 Item Schematics ----------------- Hvy. Particle Gun | -8/Materials | Scanalyzed Lgt. Deuterium Engine | -7/Factory | Scanalyzed Robot Schematics ------------------ None Fabricated ------------ Nothing Alien Tech Used ----------------- None Achievements -------------- None Challenges ------------ None Game ------ Seed ClaymoresPulseBarrier Manual? 0 Play Time 00:47:15 Cumulative 25.7 hours Start 2021.11.09 @ 07:29:37 End 2021.11.09 @ 08:15:38 Sessions 1 Manual Loads 0 Difficulty Rogue Special Mode None Game No. 20 Rogue 8 Adventurer 0 Explorer 12 Win Type - Total 1 Types 1/0/0/0/0/0/0/0/0 Lore% 21 Gallery% 29 Achievement% 28 Wizard Run 0 Options --------- ASCII 0 Keyboard 1 Movement Vi Keybinds 0 Fullscreen 1 Font 36/Smallcaps Map View 76x50 Tactical HUD 1 Map Filters NONE Filters NONE Steam 1 RUN: a8c830e7-3f48-4dea-83b2-24207c7de8a4